fUSD/lending_fUSD_20240225
["ID","MTS","AMOUNT","RATE_DAILY","PERIOD"]
[315166484,1708899037764,-1721.12831354,0.00022541,2]
[315166485,1708899037774,-500.0,0.00022541,2]
[315166486,1708899037783,-500.0,0.00022541,2]
[315166487,1708899037792,-500.0,0.00022541,2]
[315166488,1708899037801,-500.0,0.00022541,2]
[315166489,1708899037810,-507.69933536,0.00022541,2]
[315166490,1708899037819,-507.97666726,0.00022541,2]
[315166491,1708899037829,-500.0,0.00022541,2]
[315166492,1708899037838,-500.0,0.00022541,2]
[315166493,1708899037847,-504.78483175,0.00022541,2]
[315166494,1708899037857,-512.79653092,0.00022541,2]
[315166495,1708899037867,-500.0,0.00022541,2]
[315166496,1708899037877,-504.39490286,0.00022541,2]
[315166497,1708899037887,-500.00383967,0.00022541,2]
[315166498,1708899037897,-504.12892669,0.00022541,2]
[315166499,1708899037907,-501.51476034,0.00022541,2]
[315166500,1708899037917,-500.0,0.00022541,2]
[315166501,1708899037927,-501.36379248,0.00022541,2]
[315166502,1708899037936,-500.0,0.00022541,2]
[315166503,1708899037947,-500.0,0.00022541,2]
[315166504,1708899037956,-178.53839579,0.00022541,2]
[315166505,1708899037966,-500.0,0.00022541,2]
[315166506,1708899037979,-517.77066803,0.00022541,2]
[315166507,1708899037989,-500.0,0.00022541,2]
[315166508,1708899037998,-500.0,0.00022541,2]
[315166509,1708899038009,-500.0,0.00022541,2]
[315166510,1708899038018,-500.0,0.00022541,2]
[315166511,1708899038028,-500.0,0.00022541,2]
[315166512,1708899038037,-500.0,0.00022541,2]
[315166513,1708899038048,-501.75943625,0.00022541,2]
[315166514,1708899038058,-489.17150158,0.00022541,2]
[315166515,1708899038068,-509.06624899,0.00022541,2]
[315166516,1708899038078,-500.0,0.00022541,2]
[315166517,1708899038087,-516.79454792,0.00022541,2]
[315166518,1708899038097,-502.6928588,0.00022541,2]
[315166519,1708899038107,-500.0,0.00022541,2]
[315166521,1708899038116,-500.0,0.00022541,2]
[315166523,1708899038125,-500.0,0.00022541,2]
[315166525,1708899038135,-500.0,0.00022541,2]
[315166527,1708899038145,-489.62623223,0.00022541,2]
[315166529,1708899038154,-500.0,0.00022541,2]
[315166531,1708899038163,-500.0,0.00022541,2]
[315166532,1708899038172,-504.54135406,0.00022541,2]
[315166533,1708899038181,-500.0,0.00022541,2]
[315166534,1708899038190,-500.0,0.00022541,2]
[315166535,1708899038199,-500.0,0.00022541,2]
[315166536,1708899038208,-500.0,0.00022541,2]
[315166537,1708899038217,-500.0,0.00022541,2]
[315166538,1708899038226,-507.75538089,0.00022541,2]
[315166539,1708899038236,-501.69208808,0.00022541,2]
[315166540,1708899038245,-506.08829649,0.00022541,2]
[315166541,1708899038255,-535.72,0.00022541,2]
[315166542,1708899038264,-500.0,0.00022541,2]
[315166543,1708899038274,-500.0,0.00022541,2]
[315166544,1708899038283,-503.00536993,0.00022541,2]
[315166545,1708899038292,-503.83499584,0.00022541,2]
[315166546,1708899038301,-500.0,0.00022541,2]
[315166547,1708899038309,-500.0,0.00022541,2]
[315166548,1708899038318,-500.0,0.00022541,2]
[315166549,1708899038328,-500.0,0.00022541,2]
[315166550,1708899038337,-500.0,0.00022541,2]
[315166551,1708899038347,-505.890825,0.00022541,2]
[315166552,1708899038356,-505.79256036,0.00022541,2]
[315166553,1708899038365,-500.0,0.00022541,2]
[315166554,1708899038374,-500.0,0.00022541,2]
[315166555,1708899038383,-508.85587923,0.00022541,2]
[315166556,1708899038393,-500.0,0.00022541,2]
[315166557,1708899038402,-502.27825237,0.00022541,2]
[315166558,1708899038411,-583.54035979,0.00022541,2]
[315166559,1708899038420,-500.0,0.00022541,2]
[315166560,1708899038429,-502.92292849,0.00022541,2]
[315166561,1708899038438,-503.44637895,0.00022541,2]
[315166562,1708899038448,-500.0,0.00022541,2]
[315166563,1708899038457,-508.39623791,0.00022541,2]
[315166564,1708899038466,-500.0,0.00022541,2]
[315166576,1708899038704,-505.95399319,0.00022541,2]
[315166579,1708899038718,-525.81981005,0.00022541,2]
[315166581,1708899038727,-503.57155842,0.00022541,2]
[315166582,1708899038736,-505.16368706,0.00022541,2]
[315166584,1708899038746,-500.0,0.00022541,2]
[315166586,1708899038756,-500.0,0.00022541,2]
[315166588,1708899038765,-500.0,0.00022541,2]
[315166590,1708899038774,-500.0,0.00022541,2]
[315166592,1708899038783,-500.0,0.00022541,2]
[315166594,1708899038793,-473.85459898,0.00022541,2]
[315166596,1708899038802,-500.0,0.00022541,2]
[315166598,1708899038811,-501.74462783,0.00022541,2]
[315166600,1708899038820,-500.0,0.00022541,2]
[315166602,1708899038830,-500.0,0.00022541,2]
[315166604,1708899038839,-500.0,0.00022541,2]
[315166606,1708899038848,-500.0,0.00022541,2]
[315166608,1708899038858,-500.0,0.00022541,2]
[315166610,1708899038867,-500.0,0.00022541,2]
[315166612,1708899038876,-505.33266886,0.00022541,2]
[315166614,1708899038886,-500.0,0.00022541,2]
[315166616,1708899038895,-500.0,0.00022541,2]
[315166619,1708899038905,-500.0,0.00022541,2]
[315166621,1708899038914,-510.7402983,0.00022541,2]
[315166623,1708899038924,-500.0,0.00022541,2]
[315166625,1708899038933,-500.0,0.00022541,2]
[315166627,1708899038942,-500.0,0.00022541,2]
[315166629,1708899038953,-376.02407217,0.00022541,2]
[315166631,1708899038973,-123.97592783,0.00022541,2]
[315166633,1708899038982,-500.0,0.00022541,2]
[315166635,1708899038991,-507.81446546,0.00022541,2]
[315166637,1708899039001,-507.05166531,0.00022541,2]
[315166639,1708899039011,-500.0,0.00022541,2]
[315166641,1708899039020,-500.0,0.00022541,2]
[315166643,1708899039029,-508.38269299,0.00022541,2]
[315166645,1708899039039,-510.57051486,0.00022541,2]
[315166647,1708899039050,-500.0,0.00022541,2]
[315166649,1708899039059,-500.0,0.00022541,2]
[315166651,1708899039069,-502.6598259,0.00022541,2]
[315166653,1708899039078,-500.0,0.00022541,2]
[315166655,1708899039087,-512.46961911,0.00022541,2]
[315166657,1708899039096,-476.81983624,0.00022541,2]
[315166660,1708899039108,-23.18016376,0.00022541,2]
[315166661,1708899039118,-476.76983624,0.00022541,2]
[315166664,1708899039129,-23.23016376,0.00022541,2]
[315166666,1708899039138,-501.2614507,0.00022541,2]
[315166668,1708899039148,-422.13518371,0.00022541,2]
[315166670,1708899039160,-89.67874353,0.00022541,2]
[315166672,1708899039169,-504.86146436,0.00022541,2]
[315166674,1708899039178,-291.45979211,0.00022541,2]
[315166676,1708899039190,-213.3226675,0.00022541,2]
[315166678,1708899039200,-503.06829747,0.00022541,2]
[315166680,1708899039210,-500.0,0.00022541,2]
[315166682,1708899039220,-500.0,0.00022541,2]
[315166684,1708899039229,-512.72612275,0.00022541,2]
[315166686,1708899039238,-501.73103809,0.00022541,2]
[315166688,1708899039247,-157.47494457,0.00022541,2]
[315166692,1708899039278,-90.27004714,0.00022541,2]
[315166694,1708899039287,-500.0,0.00022541,2]
[315166696,1708899039296,-338.26682457,0.00022541,2]
[315166729,1708899039587,-500.0,0.00021996,2]
[315166731,1708899039596,-500.0,0.0002254,2]
[315166733,1708899039605,-167.3979264,0.00022541,2]
[315166735,1708899039614,-639.76,0.00022541,2]
[315166737,1708899039623,-500.0,0.00022541,2]
[315166739,1708899039632,-500.0,0.00022541,2]
[315166741,1708899039642,-502.80084906,0.00022541,2]
[315166743,1708899039651,-509.03329373,0.00022541,2]
[315166745,1708899039660,-500.0,0.00022541,2]
[315166747,1708899039668,-500.0,0.00022541,2]
[315166749,1708899039677,-502.2981108,0.00022541,2]
[315166751,1708899039686,-509.19606147,0.00022541,2]
[315166753,1708899039696,-504.94832459,0.00022541,2]
[315166755,1708899039705,-505.3087823,0.00022541,2]
[315166757,1708899039714,-512.90207862,0.00022541,2]
[315166759,1708899039722,-287.65243047,0.00022541,2]
[315166761,1708899039738,-212.34756953,0.00022541,2]
[315166763,1708899039747,-303.43912152,0.00022541,2]
[315166768,1708899039782,-196.56087848,0.00022541,2]
[315166770,1708899039791,-500.0,0.00022541,2]
[315166772,1708899039800,-500.0,0.00022541,2]
[315166774,1708899039809,-500.0,0.00022541,2]
[315166776,1708899039818,-512.62156315,0.00022541,2]
[315166778,1708899039827,-27.88864926,0.00022541,2]
[315166781,1708899039839,-472.11135074,0.00022541,2]
[315166783,1708899039848,-500.0,0.00022541,2]
[315166785,1708899039857,-500.0,0.00022541,2]
[315166787,1708899039866,-500.0,0.00022541,2]
[315166789,1708899039875,-500.0,0.00022541,2]
[315166791,1708899039884,-184.12824066,0.00022541,2]
[315166793,1708899039893,-180.8893446,0.00022541,2]
[315166795,1708899039905,-319.1106554,0.00022541,2]
[315166797,1708899039914,-500.0,0.00022541,2]
[315166799,1708899039923,-532.61530258,0.00022541,2]
[315166801,1708899039932,-14.59404162,0.00022541,2]
[315166803,1708899039943,-485.40595838,0.00022541,2]
[315166805,1708899039953,-500.0,0.00022541,2]
[315166807,1708899039963,-133.86100513,0.00022541,2]
[315166811,1708899039989,-377.28048836,0.00022541,2]
[315166813,1708899039998,-511.70684125,0.00022541,2]
[315166815,1708899040008,-503.10710781,0.00022541,2]
[315166817,1708899040017,-500.0,0.00022541,2]
[315166819,1708899040027,-500.0,0.00022541,2]
[315166821,1708899040036,-500.0,0.00022541,2]
[315166823,1708899040046,-509.73380263,0.00022541,2]
[315166825,1708899040055,-426.67368715,0.00022541,2]
[315166827,1708899040064,-500.0,0.00022541,2]
[315166829,1708899040074,-500.0,0.00022541,2]
[315166831,1708899040086,-500.0,0.00022541,2]
[315166833,1708899040095,-500.0,0.00022541,2]
[315166835,1708899040104,-500.0,0.00022541,2]
[315166837,1708899040113,-500.0,0.00022541,2]
[315166839,1708899040123,-510.57190432,0.00022541,2]
[315166841,1708899040132,-510.58944491,0.00022541,2]
[315166843,1708899040141,-500.0,0.00022541,2]
[315166845,1708899040150,-500.0,0.00022541,2]
[315166847,1708899040160,-500.0,0.00022541,2]
[315166849,1708899040169,-505.60338383,0.00022541,2]
[315166851,1708899040179,-500.0,0.00022541,2]
[315166853,1708899040188,-500.0,0.00022541,2]
[315166855,1708899040198,-500.0,0.00022541,2]
[315166857,1708899040207,-506.6699164,0.00022541,2]
[315166859,1708899040217,-500.0,0.00022541,2]
[315166861,1708899040227,-511.92802463,0.00022541,2]
[315166863,1708899040237,-500.0,0.00022541,2]
[315166865,1708899040246,-500.0,0.00022541,2]
[315166867,1708899040255,-299.48220985,0.00022541,2]
[315166869,1708899040265,-500.0,0.00022541,2]
[315166871,1708899040274,-510.72848023,0.00022541,2]
[315166873,1708899040284,-500.0,0.00022541,2]
[315166875,1708899040293,-500.0,0.00022541,2]
[315166877,1708899040302,-507.20370587,0.00022541,2]
[315166879,1708899040311,-502.54105057,0.00022541,2]
[315166880,1708899040321,-529.53220934,0.00022541,2]
[315166881,1708899040330,-500.0,0.00022541,2]
[315166882,1708899040339,-500.0,0.00022541,2]
[315166883,1708899040348,-500.0,0.00022541,2]
[315166884,1708899040357,-509.23763593,0.00022541,2]
[315166885,1708899040366,-519.48601462,0.00022541,2]
[315166886,1708899040375,-508.47663582,0.00022541,2]
[315166887,1708899040384,-500.0,0.00022541,2]
[315166888,1708899040393,-500.0,0.00022541,2]
[315166889,1708899040402,-503.43647403,0.00022541,2]
[315166890,1708899040411,-787.7,0.00022541,2]
[315166892,1708899040420,-500.0,0.00022541,2]
[315166894,1708899040429,-518.05352843,0.00022541,2]
[315166896,1708899040439,-500.0,0.00022541,2]
[315166898,1708899040451,-502.55338879,0.00022541,2]
[315166900,1708899040460,-503.47069947,0.00022541,2]
[315166902,1708899040471,-504.58451338,0.00022541,2]
[315166904,1708899040480,-509.85724053,0.00022541,2]
[315166906,1708899040490,-506.44360194,0.00022541,2]
[315166908,1708899040499,-657.7,0.00022541,2]
[315166910,1708899040508,-500.0,0.00022541,2]
[315166912,1708899040517,-500.0,0.00022541,2]
[315166915,1708899040530,-500.0,0.00022541,2]
[315166917,1708899040539,-500.0,0.00022541,2]
[315166919,1708899040549,-500.0,0.00022541,2]
[315166921,1708899040558,-500.0,0.00022541,2]
[315166923,1708899040567,-505.49094388,0.00022541,2]
[315166925,1708899040576,-500.0,0.00022541,2]
[315166927,1708899040585,-500.0,0.00022541,2]
[315166929,1708899040595,-500.0,0.00022541,2]
[315166931,1708899040604,-500.0,0.00022541,2]
[315166933,1708899040613,-500.0,0.00022541,2]
[315166935,1708899040622,-500.0,0.00022541,2]
[315166937,1708899040631,-500.0,0.00022541,2]
[315166939,1708899040640,-500.0,0.00022541,2]
[315166941,1708899040649,-500.0,0.00022541,2]
[315166943,1708899040659,-500.0,0.00022541,2]
[315166945,1708899040668,-512.03117327,0.00022541,2]
[315166947,1708899040677,-500.0,0.00022541,2]
[315166949,1708899040686,-500.0,0.00022541,2]
[315166951,1708899040695,-500.0,0.00022541,2]
[315166953,1708899040704,-507.41809111,0.00022541,2]
[315166955,1708899040713,-500.0,0.00022541,2]
[315166957,1708899040722,-509.16780247,0.00022541,2]
[315166959,1708899040731,-500.0,0.00022541,2]
[315166961,1708899040740,-503.99008617,0.00022541,2]
[315166963,1708899040749,-500.0,0.00022541,2]
[315166965,1708899040758,-500.0,0.00022541,2]
[315166967,1708899040767,-504.22997444,0.00022541,2]
[315166969,1708899040776,-512.80418189,0.00022541,2]
[315166971,1708899040786,-500.0,0.00022541,2]
[315166973,1708899040796,-515.54037188,0.00022541,2]
[315166975,1708899040805,-500.0,0.00022541,2]
[315166977,1708899040815,-500.0,0.00022541,2]
[315166979,1708899040824,-224.89174088,0.00022541,2]
[315166982,1708899040833,-500.0,0.00022541,2]
[315166986,1708899040851,-500.0,0.00022541,2]
[315166988,1708899040863,-502.62220082,0.00022541,2]
[315166990,1708899040876,-500.0,0.00022541,2]
[315166993,1708899040889,-508.96907304,0.00022541,2]
[315166995,1708899040901,-521.48802816,0.00022541,2]
[315166997,1708899040911,-508.18630144,0.00022541,2]
[315166999,1708899040921,-500.0,0.00022541,2]
[315167002,1708899040934,-505.23864248,0.00022541,2]
[315167004,1708899040946,-500.0,0.00022541,2]
[315167006,1708899040960,-509.26028487,0.00022541,2]
[315167008,1708899040976,-503.84734744,0.00022541,2]
[315167010,1708899040988,-500.0,0.00022541,2]
[315167013,1708899041000,-500.0,0.00022541,2]
[315167015,1708899041012,-500.0,0.00022541,2]
[315167017,1708899041024,-500.0,0.00022541,2]
[315167020,1708899041036,-500.0,0.00022541,2]
[315167022,1708899041047,-500.0,0.00022541,2]
[315167024,1708899041061,-500.0,0.00022541,2]
[315167026,1708899041072,-512.39839583,0.00022541,2]
[315167029,1708899041084,-500.0,0.00022541,2]
[315167031,1708899041095,-500.0,0.00022541,2]
[315167033,1708899041107,-500.0,0.00022541,2]
[315167035,1708899041118,-500.0,0.00022541,2]
[315167037,1708899041129,-500.0,0.00022541,2]
[315167040,1708899041140,-511.70150995,0.00022541,2]
[315167042,1708899041153,-500.0,0.00022541,2]
[315167044,1708899041165,-500.0,0.00022541,2]
[315167046,1708899041176,-500.0,0.00022541,2]
[315167048,1708899041186,-500.0,0.00022541,2]
[315167050,1708899041196,-500.0,0.00022541,2]
[315167053,1708899041209,-500.0,0.00022541,2]
[315167055,1708899041221,-500.0,0.00022541,2]
[315167057,1708899041232,-500.0,0.00022541,2]
[315167060,1708899041244,-505.9961217,0.00022541,2]
[315167062,1708899041257,-500.0,0.00022541,2]
[315167064,1708899041270,-500.0,0.00022541,2]
[315167067,1708899041282,-517.81983865,0.00022541,2]
[315167069,1708899041291,-500.0,0.00022541,2]
[315167071,1708899041303,-513.10403484,0.00022541,2]
[315167073,1708899041314,-179.44139044,0.00022541,2]
[315167075,1708899041325,-499.39314712,0.00022541,2]
[315167078,1708899041336,-500.0,0.00022541,2]
[315167080,1708899041347,-500.0,0.00022541,2]
[315167082,1708899041359,-500.0,0.00022541,2]
[315167085,1708899041371,-500.0,0.00022541,2]
[315167087,1708899041383,-500.0,0.00022541,2]
[315167089,1708899041395,-500.0,0.00022541,2]
[315167092,1708899041406,-500.0,0.00022541,2]
[315167094,1708899041418,-500.0,0.00022541,2]
[315167096,1708899041428,-500.0,0.00022541,2]
[315167098,1708899041438,-500.0,0.00022541,2]
[315167100,1708899041448,-507.98318771,0.00022541,2]
[315167102,1708899041458,-279.59072717,0.00022541,2]
[315167104,1708899041469,-500.0,0.00022541,2]
[315167106,1708899041480,-500.0,0.00022541,2]
[315167109,1708899041491,-500.0,0.00022541,2]
[315167111,1708899041502,-500.0,0.00022541,2]
[315167113,1708899041516,-500.0,0.00022541,2]
[315167116,1708899041528,-511.2509071,0.00022541,2]
[315167118,1708899041538,-500.0,0.00022541,2]
[315167120,1708899041548,-500.0,0.00022541,2]
[315167122,1708899041558,-500.0,0.00022541,2]
[315167124,1708899041568,-500.0,0.00022541,2]
[315167126,1708899041579,-500.0,0.00022541,2]
[315167129,1708899041590,-513.116768,0.00022541,2]
[315167131,1708899041601,-385.88898649,0.00022541,2]
[315167133,1708899041612,-500.0,0.00022541,2]
[315167135,1708899041624,-621.83,0.00022541,2]
[315167137,1708899041636,-506.75825107,0.00022541,2]
[315167140,1708899041648,-510.39814874,0.00022541,2]
[315167143,1708899041668,-517.70779906,0.00022541,2]
[315167145,1708899041680,-500.0,0.00022541,2]
[315167147,1708899041691,-500.0,0.00022541,2]
[315167149,1708899041705,-507.72455178,0.00022541,2]
[315167152,1708899041716,-500.0,0.00022541,2]
[315167154,1708899041728,-500.0,0.00022541,2]
[315167156,1708899041739,-517.13307021,0.00022541,2]
[315167159,1708899041750,-503.4828305,0.00022541,2]
[315167161,1708899041762,-500.0,0.00022541,2]
[315167163,1708899041773,-500.0,0.00022541,2]
[315167165,1708899041784,-500.0,0.00022541,2]
[315167168,1708899041795,-516.23555513,0.00022541,2]
[315167170,1708899041806,-500.0,0.00022541,2]
[315167172,1708899041816,-526.15133865,0.00022541,2]
[315167174,1708899041827,-500.0,0.00022541,2]
[315167176,1708899041838,-500.0,0.00022541,2]
[315167178,1708899041849,-500.0,0.00022541,2]
[315167181,1708899041861,-500.0,0.00022541,2]
[315167183,1708899041872,-500.0,0.00022541,2]
[315167185,1708899041883,-500.0,0.00022541,2]
[315167187,1708899041894,-500.0,0.00022541,2]
[315167189,1708899041905,-500.0,0.00022541,2]
[315167192,1708899041915,-500.0,0.00022541,2]
[315167194,1708899041926,-500.0,0.00022541,2]
[315167196,1708899041937,-500.0,0.00022541,2]
[315167198,1708899041948,-603.44,0.00022541,2]
[315167200,1708899041959,-504.57242151,0.00022541,2]
[315167203,1708899041970,-500.0,0.00022541,2]
[315167205,1708899041985,-500.0,0.00022541,2]
[315167207,1708899041996,-504.51090166,0.00022541,2]
[315167209,1708899042007,-503.61854979,0.00022541,2]
[315167211,1708899042018,-500.0,0.00022541,2]
[315167214,1708899042029,-511.31485574,0.00022541,2]
[315167216,1708899042040,-500.0,0.00022541,2]
[315167218,1708899042050,-500.0,0.00022541,2]
[315167220,1708899042061,-503.22,0.00022541,2]
[315167222,1708899042072,-500.0,0.00022541,2]
[315167224,1708899042082,-500.0,0.00022541,2]
[315167226,1708899042094,-514.73,0.00022541,2]
[315167228,1708899042105,-168.85625237,0.00022541,2]
[315167231,1708899042116,-500.0,0.00022541,2]
[315167233,1708899042126,-504.33164549,0.00022541,2]
[315167235,1708899042138,-521.58,0.00022541,2]
[315167237,1708899042148,-500.0,0.00022541,2]
[315167239,1708899042160,-504.23367607,0.00022541,2]
[315167242,1708899042170,-500.0,0.00022541,2]
[315167244,1708899042181,-561.62008962,0.00022541,2]
[315167246,1708899042192,-500.0,0.00022541,2]
[315167248,1708899042203,-519.64924212,0.00022541,2]
[315167250,1708899042214,-500.0,0.00022541,2]
[315167252,1708899042224,-500.0,0.00022541,2]
[315167254,1708899042235,-500.0,0.00022541,2]
[315167257,1708899042246,-500.0,0.00022541,2]
[315167259,1708899042257,-500.0,0.00022541,2]
[315167261,1708899042268,-509.29883836,0.00022541,2]
[315167263,1708899042278,-500.0,0.00022541,2]
[315167265,1708899042289,-500.0,0.00022541,2]
[315167267,1708899042300,-500.0,0.00022541,2]
[315167269,1708899042311,-500.0,0.00022541,2]
[315167272,1708899042321,-500.0,0.00022541,2]
[315167274,1708899042332,-500.0,0.00022541,2]
[315167276,1708899042343,-500.0,0.00022541,2]
[315167278,1708899042354,-500.0,0.00022541,2]
[315167280,1708899042364,-503.24733786,0.00022541,2]
[315167283,1708899042376,-510.26741631,0.00022541,2]
[315167285,1708899042387,-500.0,0.00022541,2]
[315167287,1708899042398,-500.0,0.00022541,2]
[315167289,1708899042408,-500.0,0.00022541,2]
[315167291,1708899042419,-500.0,0.00022541,2]
[315167293,1708899042429,-500.0,0.00022541,2]
[315167296,1708899042440,-506.19668232,0.00022541,2]
[315167298,1708899042451,-500.0,0.00022541,2]
[315167300,1708899042462,-500.0,0.00022541,2]
[315167302,1708899042473,-511.50603987,0.00022541,2]
[315167304,1708899042484,-500.0,0.00022541,2]
[315167306,1708899042494,-500.0,0.00022541,2]
[315167309,1708899042505,-500.0,0.00022541,2]
[315167311,1708899042515,-500.0,0.00022541,2]
[315167313,1708899042526,-500.0,0.00022541,2]
[315167315,1708899042536,-500.0,0.00022541,2]
[315167317,1708899042546,-500.0,0.00022541,2]
[315167319,1708899042556,-500.0,0.00022541,2]
[315167322,1708899042566,-500.0,0.00022541,2]
[315167324,1708899042577,-512.47405123,0.00022541,2]
[315167326,1708899042587,-500.0,0.00022541,2]
[315167328,1708899042597,-500.0,0.00022541,2]
[315167330,1708899042608,-506.61945599,0.00022541,2]
[315167332,1708899042618,-514.70805539,0.00022541,2]
[315167334,1708899042629,-504.82825033,0.00022541,2]
[315167337,1708899042640,-1009.13,0.00022541,2]
[315167339,1708899042650,-507.18686864,0.00022541,2]
[315167341,1708899042661,-500.0,0.00022541,2]
[315167343,1708899042672,-500.0,0.00022541,2]
[315167345,1708899042682,-500.0,0.00022541,2]
[315167348,1708899042692,-504.0380682,0.00022541,2]
[315167350,1708899042703,-500.0,0.00022541,2]
[315167352,1708899042713,-500.0,0.00022541,2]
[315167354,1708899042723,-182.7392506,0.00022541,2]
[315167355,1708899042734,-500.0,0.00022541,2]
[315167356,1708899042745,-500.0,0.00022541,2]
[315167357,1708899042755,-500.0,0.00022541,2]
[315167358,1708899042765,-500.0,0.00022541,2]
[315167359,1708899042775,-519.6294157,0.00022541,2]
[315167360,1708899042786,-505.59629415,0.00022541,2]
[315167361,1708899042796,-500.0,0.00022541,2]
[315167362,1708899042806,-524.74678241,0.00022541,2]
[315167364,1708899042817,-500.0,0.00022541,2]
[315167366,1708899042827,-514.42747694,0.00022541,2]
[315167368,1708899042836,-500.0,0.00022541,2]
[315167370,1708899042847,-509.54015427,0.00022541,2]
[315167372,1708899042857,-500.0,0.00022541,2]
[315167375,1708899042868,-500.0,0.00022541,2]
[315167377,1708899042878,-500.0,0.00022541,2]
[315167379,1708899042888,-500.0,0.00022541,2]
[315167381,1708899042898,-500.0,0.00022541,2]
[315167383,1708899042909,-500.0,0.00022541,2]
[315167385,1708899042919,-500.0,0.00022541,2]
[315167387,1708899042930,-500.0,0.00022541,2]
[315167390,1708899042940,-500.0,0.00022541,2]
[315167392,1708899042952,-516.99692799,0.00022541,2]
[315167394,1708899042962,-500.0,0.00022541,2]
[315167396,1708899042973,-515.77680012,0.00022541,2]
[315167398,1708899042986,-500.0,0.00022541,2]
[315167400,1708899042996,-500.0,0.00022541,2]
[315167402,1708899043007,-500.0,0.00022541,2]
[315167405,1708899043018,-500.0,0.00022541,2]
[315167407,1708899043029,-500.0,0.00022541,2]
[315167409,1708899043039,-500.0,0.00022541,2]
[315167411,1708899043049,-500.0,0.00022541,2]
[315167413,1708899043060,-507.69941451,0.00022541,2]
[315167415,1708899043071,-500.0,0.00022541,2]
[315167417,1708899043081,-343.11882267,0.00022541,2]
[315167419,1708899043092,-500.0,0.00022541,2]
[315167421,1708899043103,-500.0,0.00022541,2]
[315167424,1708899043114,-500.0,0.00022541,2]
[315167426,1708899043124,-500.0,0.00022541,2]
[315167428,1708899043135,-522.66586356,0.00022541,2]
[315167431,1708899043146,-500.0,0.00022541,2]
[315167433,1708899043156,-500.0,0.00022541,2]
[315167435,1708899043167,-500.0,0.00022541,2]
[315167438,1708899043177,-604.78575951,0.00022541,2]
[315167440,1708899043188,-500.0,0.00022541,2]
[315167443,1708899043200,-500.0,0.00022541,2]
[315167446,1708899043210,-500.0,0.00022541,2]
[315167448,1708899043221,-500.0,0.00022541,2]
[315167450,1708899043231,-531.47411163,0.00022541,2]
[315167453,1708899043242,-522.17101558,0.00022541,2]
[315167456,1708899043253,-500.0,0.00022541,2]
[315167459,1708899043263,-500.0,0.00022541,2]
[315167462,1708899043273,-500.0,0.00022541,2]
[315167465,1708899043284,-500.0,0.00022541,2]
[315167468,1708899043294,-500.0,0.00022541,2]
[315167471,1708899043304,-500.0,0.00022541,2]
[315167474,1708899043314,-508.96991609,0.00022541,2]
[315167477,1708899043324,-500.0,0.00022541,2]
[315167480,1708899043335,-500.0,0.00022541,2]
[315167516,1708899043618,-514.80324626,0.00022541,2]
[315167519,1708899043639,-505.56452213,0.00022541,2]
[315167522,1708899043653,-500.0,0.00022541,2]
[315167524,1708899043662,-500.0,0.00022541,2]
[315167526,1708899043671,-500.0,0.00022541,2]
[315167528,1708899043680,-500.0,0.00022541,2]
[315167530,1708899043689,-500.0,0.00022541,2]
[315167532,1708899043698,-500.0,0.00022541,2]
[315167534,1708899043707,-1011.86346975,0.00022541,7]
[315167536,1708899043716,-500.0,0.00022541,2]
[315167538,1708899043725,-500.0,0.00022541,2]